[Event "Late-Titled-Tuesday-Blitz-March-12-2024"]
[Site "Chess.com"]
[Date "2024.03.12"]
[Round "2"]
[White "GilbertoHernandezAmura"]
[Black "Incognizance"]
[Result "1-0"]
[WhiteElo "2449"]
[BlackElo "1833"]
[TimeControl "180+1"]
[EndTime "14:17:34 PDT"]
[Termination "GilbertoHernandezAmura won on time"]

1. d4 {[%clk 0:03:00.9]} 1... Nf6 {[%clk 0:02:59.7]} 2. Bg5 {[%clk 0:02:58.9]}
2... d5 {[%clk 0:02:59]} 3. Bxf6 {[%clk 0:02:59.2]} 3... exf6 {[%clk 0:02:59.9]}
4. e3 {[%clk 0:02:57.5]} 4... c6 {[%clk 0:03:00.4]} 5. c4 {[%clk 0:02:55.6]}
5... dxc4 {[%clk 0:02:57.6]} 6. Bxc4 {[%clk 0:02:56.5]} 6... Bf5 {[%clk
0:02:57.8]} 7. Nc3 {[%clk 0:02:56.2]} 7... Bb4 {[%clk 0:02:55.8]} 8. Ne2 {[%clk
0:02:56.2]} 8... O-O {[%clk 0:02:55.8]} 9. O-O {[%clk 0:02:51.9]} 9... Nd7
{[%clk 0:02:53.5]} 10. Qb3 {[%clk 0:02:51.4]} 10... Bxc3 {[%clk 0:02:51.9]} 11.
bxc3 {[%clk 0:02:52.3]} 11... Nb6 {[%clk 0:02:52.3]} 12. a4 {[%clk 0:02:47.4]}
12... Nxc4 {[%clk 0:02:50.8]} 13. Qxc4 {[%clk 0:02:47.4]} 13... Be6 {[%clk
0:01:58.7]} 14. Qb4 {[%clk 0:02:45.4]} 14... Rb8 {[%clk 0:01:58.8]} 15. Ng3
{[%clk 0:02:42.7]} 15... g6 {[%clk 0:01:52.2]} 16. Ne4 {[%clk 0:02:41.2]} 16...
f5 {[%clk 0:01:47.3]} 17. Nc5 {[%clk 0:02:40.5]} 17... b6 {[%clk 0:01:41.9]} 18.
Nxe6 {[%clk 0:02:35.8]} 18... fxe6 {[%clk 0:01:42.8]} 19. a5 {[%clk 0:02:36.5]}
19... bxa5 {[%clk 0:01:39.5]} 20. Qxa5 {[%clk 0:02:36.2]} 20... Qxa5 {[%clk
0:01:39.8]} 21. Rxa5 {[%clk 0:02:37.1]} 21... Rb3 {[%clk 0:01:28.7]} 22. Rc1
{[%clk 0:02:33.6]} 22... Rfb8 {[%clk 0:01:21]} 23. h4 {[%clk 0:02:33.1]} 23...
Rb1 {[%clk 0:01:16]} 24. Rxb1 {[%clk 0:02:33.1]} 24... Rxb1+ {[%clk 0:01:15.8]}
25. Kh2 {[%clk 0:02:34]} 25... Rc1 {[%clk 0:01:16.3]} 26. Rxa7 {[%clk
0:02:31.1]} 26... Rxc3 {[%clk 0:01:16.4]} 27. Re7 {[%clk 0:02:31.1]} 27... Rc2
{[%clk 0:01:15.4]} 28. Kg3 {[%clk 0:02:30.4]} 28... c5 {[%clk 0:01:15.4]} 29.
dxc5 {[%clk 0:02:28.5]} 29... Rxc5 {[%clk 0:01:15.3]} 30. Rxe6 {[%clk
0:02:28.9]} 30... Kf7 {[%clk 0:01:14.8]} 31. Ra6 {[%clk 0:02:28.7]} 31... h5
{[%clk 0:01:12]} 32. f3 {[%clk 0:02:25]} 32... Rc4 {[%clk 0:01:01.1]} 33. Rd6
{[%clk 0:02:17.6]} 33... Ra4 {[%clk 0:00:59.5]} 34. Rd4 {[%clk 0:02:12]} 34...
Ra3 {[%clk 0:00:48.8]} 35. Kf4 {[%clk 0:02:11.4]} 35... Ra2 {[%clk 0:00:48.4]}
36. g3 {[%clk 0:02:10.9]} 36... Kf6 {[%clk 0:00:39.5]} 37. Rd6+ {[%clk
0:02:10.2]} 37... Kf7 {[%clk 0:00:39.4]} 38. Rb6 {[%clk 0:02:09.3]} 38... Ra3
{[%clk 0:00:34.4]} 39. Rb2 {[%clk 0:01:34.8]} 39... Kf6 {[%clk 0:00:30.9]} 40.
e4 {[%clk 0:01:32]} 40... fxe4 {[%clk 0:00:30.1]} 41. fxe4 {[%clk 0:01:32.9]}
41... Kg7 {[%clk 0:00:15.9]} 42. Rb7+ {[%clk 0:01:13.6]} 42... Kf6 {[%clk
0:00:15.9]} 43. e5+ {[%clk 0:01:11.9]} 43... Ke6 {[%clk 0:00:16.4]} 44. Rb6+
{[%clk 0:01:12]} 44... Kf7 {[%clk 0:00:16.8]} 45. Rb4 {[%clk 0:01:09.1]} 45...
Ra1 {[%clk 0:00:12.6]} 46. Kg5 {[%clk 0:01:03]} 46... Rg1 {[%clk 0:00:09.6]} 47.
Rf4+ {[%clk 0:01:02.8]} 47... Ke6 {[%clk 0:00:08.5]} 48. Rf3 {[%clk 0:01:02]}
48... Kxe5 {[%clk 0:00:06.9]} 49. Kxg6 {[%clk 0:01:02.6]} 49... Ke4 {[%clk
0:00:07.1]} 50. Ra3 {[%clk 0:01:03]} 50... Rb1 {[%clk 0:00:02.9]} 51. Kxh5
{[%clk 0:01:02.9]} 51... Rb5+ {[%clk 0:00:02.3]} 52. Kg4 {[%clk 0:01:03]} 52...
Rb4 {[%clk 0:00:01.3]} 53. Kh3 {[%clk 0:00:58.7]} 53... Kd5 {[%clk 0:00:01.5]}
54. g4 {[%clk 0:00:58.1]} 54... Ke5 {[%clk 0:00:01.7]} 55. Rf3 {[%clk
0:00:58.3]} 55... Ke4 {[%clk 0:00:02]} 56. Kg3 {[%clk 0:00:57.5]} 56... Rb1
{[%clk 0:00:01.8]} 57. Rf4+ {[%clk 0:00:51.2]} 57... Ke5 {[%clk 0:00:02.3]} 58.
Rf5+ {[%clk 0:00:47.3]} 58... Ke6 {[%clk 0:00:02.3]} 59. h5 {[%clk 0:00:47.4]}
1-0

[Event "Late-Titled-Tuesday-Blitz-March-12-2024"]
[Site "Chess.com"]
[Date "2024.03.12"]
[Round "2"]
[White "Smoking_Crow"]
[Black "TigrVShlyape"]
[Result "1-0"]
[WhiteElo "2632"]
[BlackElo "2913"]
[TimeControl "180+1"]
[EndTime "14:17:35 PDT"]
[Termination "Smoking_Crow won on time"]

1. e4 {[%clk 0:03:00.9]} 1... c5 {[%clk 0:02:58.3]} 2. Nf3 {[%clk 0:03:00.9]}
2... Nc6 {[%clk 0:02:56.6]} 3. d4 {[%clk 0:03:00.7]} 3... cxd4 {[%clk
0:02:56.7]} 4. Nxd4 {[%clk 0:03:01.6]} 4... Qb6 {[%clk 0:02:57]} 5. Nb3 {[%clk
0:03:01.1]} 5... Nf6 {[%clk 0:02:56.8]} 6. Nc3 {[%clk 0:03:01.7]} 6... e6 {[%clk
0:02:57.4]} 7. Qe2 {[%clk 0:03:01.9]} 7... Bb4 {[%clk 0:02:49.4]} 8. Bd2 {[%clk
0:03:02.2]} 8... O-O {[%clk 0:02:44.6]} 9. a3 {[%clk 0:02:59]} 9... Be7 {[%clk
0:02:42.7]} 10. O-O-O {[%clk 0:02:58.4]} 10... d5 {[%clk 0:02:40.4]} 11. exd5
{[%clk 0:02:58.3]} 11... Nxd5 {[%clk 0:02:39.1]} 12. Nxd5 {[%clk 0:02:58.4]}
12... exd5 {[%clk 0:02:39.4]} 13. Be3 {[%clk 0:02:51.9]} 13... Qc7 {[%clk
0:02:39.2]} 14. Kb1 {[%clk 0:02:49.9]} 14... Be6 {[%clk 0:02:35.6]} 15. Bc5
{[%clk 0:02:38.6]} 15... Bxc5 {[%clk 0:02:20.3]} 16. Nxc5 {[%clk 0:02:39.5]}
16... Rfe8 {[%clk 0:02:17.1]} 17. Nxe6 {[%clk 0:02:34.3]} 17... fxe6 {[%clk
0:02:02.9]} 18. g3 {[%clk 0:02:32.5]} 18... Ne5 {[%clk 0:02:00.2]} 19. f4 {[%clk
0:02:20.6]} 19... Nc4 {[%clk 0:01:59.5]} 20. Qf3 {[%clk 0:02:20.7]} 20... b5
{[%clk 0:01:54.2]} 21. Bd3 {[%clk 0:02:13.5]} 21... Rf8 {[%clk 0:01:47.9]} 22.
Rhe1 {[%clk 0:02:08.9]} 22... Rf6 {[%clk 0:01:45.7]} 23. Qe2 {[%clk 0:02:04.1]}
23... Rb8 {[%clk 0:01:38.9]} 24. c3 {[%clk 0:01:32.2]} 24... a5 {[%clk
0:01:37.8]} 25. h4 {[%clk 0:01:28.4]} 25... b4 {[%clk 0:01:25.9]} 26. cxb4
{[%clk 0:00:40.5]} 26... axb4 {[%clk 0:01:25.2]} 27. a4 {[%clk 0:00:41]} 27...
Qc6 {[%clk 0:01:03.4]} 28. Bxc4 {[%clk 0:00:32.4]} 28... dxc4 {[%clk 0:01:02.2]}
29. Qe5 {[%clk 0:00:15.3]} 29... Ra8 {[%clk 0:00:56.8]} 30. Qb5 {[%clk
0:00:15.3]} 30... Qf3 {[%clk 0:00:31.5]} 31. Qxc4 {[%clk 0:00:09.9]} 31... Qxg3
{[%clk 0:00:28.1]} 32. Rxe6 {[%clk 0:00:06]} 32... Qg6+ {[%clk 0:00:26.5]} 33.
Re4+ {[%clk 0:00:05.5]} 33... Kh8 {[%clk 0:00:25.3]} 34. Qd3 {[%clk 0:00:03.5]}
34... b3 {[%clk 0:00:20.7]} 35. Rde1 {[%clk 0:00:03.1]} 35... h6 {[%clk
0:00:19]} 36. h5 {[%clk 0:00:03.2]} 36... Qg5 {[%clk 0:00:18.7]} 37. Re8+ {[%clk
0:00:02.8]} 37... Rf8 {[%clk 0:00:03.5]} 38. Rxf8+ {[%clk 0:00:03.7]} 38... Rxf8
{[%clk 0:00:03]} 39. fxg5 {[%clk 0:00:04.6]} 1-0

[Event "Late-Titled-Tuesday-Blitz-March-12-2024"]
[Site "Chess.com"]
[Date "2024.03.12"]
[Round "2"]
[White "Zq1"]
[Black "remi04"]
[Result "0-1"]
[WhiteElo "2606"]
[BlackElo "2906"]
[TimeControl "180+1"]
[EndTime "14:17:38 PDT"]
[Termination "remi04 won on time"]

1. d4 {[%clk 0:03:00.9]} 1... d5 {[%clk 0:02:59.9]} 2. c4 {[%clk 0:03:00.8]}
2... e5 {[%clk 0:03:00.2]} 3. dxe5 {[%clk 0:02:59.8]} 3... d4 {[%clk 0:03:01.1]}
4. Nf3 {[%clk 0:02:59.3]} 4... Nc6 {[%clk 0:03:01.5]} 5. a3 {[%clk 0:02:59]}
5... Nge7 {[%clk 0:03:01.3]} 6. b4 {[%clk 0:02:57.1]} 6... Ng6 {[%clk
0:03:01.6]} 7. Bb2 {[%clk 0:02:57.2]} 7... a5 {[%clk 0:03:02.2]} 8. b5 {[%clk
0:02:56.4]} 8... Ncxe5 {[%clk 0:03:02.9]} 9. Nxe5 {[%clk 0:02:54.9]} 9... Nxe5
{[%clk 0:03:03.8]} 10. Qxd4 {[%clk 0:02:54.3]} 10... Qxd4 {[%clk 0:03:03.5]} 11.
Bxd4 {[%clk 0:02:53.9]} 11... Nxc4 {[%clk 0:03:04.4]} 12. e3 {[%clk 0:02:53.7]}
12... Nd6 {[%clk 0:03:01.3]} 13. Be2 {[%clk 0:02:44.9]} 13... Bd7 {[%clk
0:02:53.7]} 14. a4 {[%clk 0:02:33.2]} 14... Nf5 {[%clk 0:02:53.6]} 15. Bc3
{[%clk 0:02:33.3]} 15... Bb4 {[%clk 0:02:53.3]} 16. O-O {[%clk 0:02:32]} 16...
Ke7 {[%clk 0:02:53.3]} 17. Rc1 {[%clk 0:02:23.5]} 17... Rhc8 {[%clk 0:02:52.7]}
18. g4 {[%clk 0:02:13.1]} 18... Nd6 {[%clk 0:02:44.8]} 19. f3 {[%clk 0:02:11.2]}
19... f6 {[%clk 0:02:38.4]} 20. Bxb4 {[%clk 0:02:07.2]} 20... axb4 {[%clk
0:02:39.3]} 21. Nd2 {[%clk 0:02:06.8]} 21... c6 {[%clk 0:02:36.1]} 22. b6 {[%clk
0:01:59.9]} 22... c5 {[%clk 0:02:14.2]} 23. a5 {[%clk 0:01:59.8]} 23... Bb5
{[%clk 0:02:03.2]} 24. Bxb5 {[%clk 0:01:30.7]} 24... Nxb5 {[%clk 0:02:04.1]} 25.
Rc4 {[%clk 0:01:29.7]} 25... Nd6 {[%clk 0:01:55.3]} 26. Rcc1 {[%clk 0:01:01.2]}
26... c4 {[%clk 0:01:55]} 27. Ra4 {[%clk 0:00:59.5]} 27... b3 {[%clk 0:01:32.2]}
28. Rc3 {[%clk 0:00:57.5]} 28... Rc6 {[%clk 0:01:12.3]} 29. a6 {[%clk
0:00:32.7]} 29... Rxb6 {[%clk 0:01:04.7]} 30. a7 {[%clk 0:00:26.3]} 30... b2
{[%clk 0:00:46.2]} 31. Nb1 {[%clk 0:00:25.2]} 31... Ra6 {[%clk 0:00:28.9]} 32.
Rxa6 {[%clk 0:00:22.8]} 32... bxa6 {[%clk 0:00:29.8]} 33. Rc2 {[%clk 0:00:22.8]}
33... Rxa7 {[%clk 0:00:30.3]} 34. Rxb2 {[%clk 0:00:23.1]} 34... Nb5 {[%clk
0:00:29.3]} 35. Rb4 {[%clk 0:00:20.6]} 35... Rc7 {[%clk 0:00:28.1]} 36. Rb2
{[%clk 0:00:17.8]} 36... Kd6 {[%clk 0:00:19.3]} 37. Kf2 {[%clk 0:00:16.5]} 37...
Kc5 {[%clk 0:00:19.6]} 38. Ke2 {[%clk 0:00:16.4]} 38... a5 {[%clk 0:00:19.3]}
39. Kd1 {[%clk 0:00:15]} 39... a4 {[%clk 0:00:19]} 40. Kc2 {[%clk 0:00:14]}
40... a3 {[%clk 0:00:15.8]} 41. Ra2 {[%clk 0:00:13.3]} 41... Kb4 {[%clk
0:00:16.3]} 42. Ra1 {[%clk 0:00:10.9]} 42... c3 {[%clk 0:00:14.6]} 43. Ra2
{[%clk 0:00:10.8]} 43... Rd7 {[%clk 0:00:14.1]} 44. Ra1 {[%clk 0:00:09.5]} 44...
h5 {[%clk 0:00:12.9]} 45. h3 {[%clk 0:00:08.3]} 45... hxg4 {[%clk 0:00:12.8]}
46. hxg4 {[%clk 0:00:08.3]} 46... Rd8 {[%clk 0:00:13.3]} 47. Nxa3 {[%clk
0:00:03.6]} 47... Nxa3+ {[%clk 0:00:13.1]} 48. Kc1 {[%clk 0:00:02.9]} 48... Kb3
{[%clk 0:00:10.8]} 0-1

[Event "Late-Titled-Tuesday-Blitz-March-12-2024"]
[Site "Chess.com"]
[Date "2024.03.12"]
[Round "2"]
[White "yuriydovzik"]
[Black "GiorgianBarbosa"]
[Result "0-1"]
[WhiteElo "2094"]
[BlackElo "2466"]
[TimeControl "180+1"]
[EndTime "14:17:38 PDT"]
[Termination "GiorgianBarbosa won on time"]

1. Nf3 {[%clk 0:02:40.7]} 1... Nf6 {[%clk 0:02:58.8]} 2. b3 {[%clk 0:02:37.2]}
2... g6 {[%clk 0:02:59.7]} 3. Bb2 {[%clk 0:02:36.8]} 3... Bg7 {[%clk 0:03:00.6]}
4. g3 {[%clk 0:02:32.2]} 4... O-O {[%clk 0:03:00.9]} 5. Bg2 {[%clk 0:02:31.9]}
5... c5 {[%clk 0:03:01.5]} 6. c4 {[%clk 0:02:30.3]} 6... Nc6 {[%clk 0:03:02.4]}
7. O-O {[%clk 0:02:29.3]} 7... d5 {[%clk 0:03:02.7]} 8. cxd5 {[%clk 0:02:21.9]}
8... Qxd5 {[%clk 0:03:03.3]} 9. Ne5 {[%clk 0:02:17.2]} 9... Qd6 {[%clk
0:02:59.7]} 10. Nxc6 {[%clk 0:02:15]} 10... bxc6 {[%clk 0:03:00.6]} 11. d3
{[%clk 0:02:08.2]} 11... Be6 {[%clk 0:02:58]} 12. Nd2 {[%clk 0:02:06.9]} 12...
a5 {[%clk 0:02:57.8]} 13. a4 {[%clk 0:02:00.5]} 13... Rfb8 {[%clk 0:02:52.3]}
14. Rc1 {[%clk 0:01:56.1]} 14... Rb4 {[%clk 0:02:46.6]} 15. Bc3 {[%clk
0:01:51.5]} 15... Rb7 {[%clk 0:02:44.2]} 16. Qc2 {[%clk 0:01:46.1]} 16... Rc8
{[%clk 0:02:23.2]} 17. Bxa5 {[%clk 0:01:34.6]} 17... Nd5 {[%clk 0:02:16.8]} 18.
Ne4 {[%clk 0:01:31.9]} 18... Qe5 {[%clk 0:02:02.2]} 19. Nxc5 {[%clk 0:01:27.3]}
19... Ra7 {[%clk 0:01:56.8]} 20. b4 {[%clk 0:01:06.8]} 20... Bh6 {[%clk
0:01:34.5]} 21. e3 {[%clk 0:00:52.7]} 21... Bg4 {[%clk 0:01:06]} 22. h3 {[%clk
0:00:43.3]} 22... Nxe3 {[%clk 0:01:02.1]} 23. fxe3 {[%clk 0:00:37.2]} 23...
Bxe3+ {[%clk 0:00:56.2]} 24. Kh2 {[%clk 0:00:35.6]} 24... Bf5 {[%clk 0:00:52.9]}
25. Rce1 {[%clk 0:00:31.1]} 25... Rxa5 {[%clk 0:00:35.3]} 26. bxa5 {[%clk
0:00:20]} 26... Qxc5 {[%clk 0:00:36.2]} 27. Qxc5 {[%clk 0:00:18.3]} 27... Bxc5
{[%clk 0:00:37.1]} 28. Rc1 {[%clk 0:00:15.7]} 28... Bd6 {[%clk 0:00:27.1]} 29.
Be4 {[%clk 0:00:12.5]} 29... Bd7 {[%clk 0:00:25.3]} 30. a6 {[%clk 0:00:12]}
30... Ra8 {[%clk 0:00:25.4]} 31. Bxc6 {[%clk 0:00:10.7]} 31... Bxc6 {[%clk
0:00:21.1]} 32. Rxc6 {[%clk 0:00:10.4]} 32... Ra7 {[%clk 0:00:22]} 33. Rb1
{[%clk 0:00:09.5]} 33... Kg7 {[%clk 0:00:21.9]} 34. Rb7 {[%clk 0:00:09.2]} 34...
Ra8 {[%clk 0:00:22.8]} 35. a7 {[%clk 0:00:08.9]} 35... h5 {[%clk 0:00:21.9]} 36.
Ra6 {[%clk 0:00:08.3]} 36... Bc5 {[%clk 0:00:20]} 37. Kg2 {[%clk 0:00:07.3]}
37... e5 {[%clk 0:00:16.5]} 38. Kf3 {[%clk 0:00:06.3]} 38... Bd4 {[%clk
0:00:16.7]} 39. Rd6 {[%clk 0:00:04.4]} 39... h4 {[%clk 0:00:13]} 40. Rdd7 {[%clk
0:00:02.8]} 40... Rf8 {[%clk 0:00:11.3]} 41. Rxf7+ {[%clk 0:00:01.6]} 41... Kh6
{[%clk 0:00:07.7]} 42. Rxf8 {[%clk 0:00:01]} 42... hxg3 {[%clk 0:00:08.6]} 0-1

[Event "Late-Titled-Tuesday-Blitz-March-12-2024"]
[Site "Chess.com"]
[Date "2024.03.12"]
[Round "2"]
[White "Bauman_Guy"]
[Black "reevecanada"]
[Result "0-1"]
[WhiteElo "2917"]
[BlackElo "2639"]
[TimeControl "180+1"]
[EndTime "14:17:41 PDT"]
[Termination "reevecanada won by resignation"]

1. e4 {[%clk 0:03:00.9]} 1... c5 {[%clk 0:02:56.4]} 2. Nf3 {[%clk 0:02:59.7]}
2... Nc6 {[%clk 0:02:49.9]} 3. d4 {[%clk 0:03:00.1]} 3... cxd4 {[%clk
0:02:48.4]} 4. Nxd4 {[%clk 0:03:01]} 4... g6 {[%clk 0:02:48.5]} 5. c4 {[%clk
0:03:00.9]} 5... Bg7 {[%clk 0:02:48]} 6. Be3 {[%clk 0:03:00.9]} 6... Qa5+ {[%clk
0:02:46.4]} 7. Nc3 {[%clk 0:02:58.7]} 7... Nf6 {[%clk 0:02:45.8]} 8. Nb3 {[%clk
0:02:51.6]} 8... Qd8 {[%clk 0:02:41.5]} 9. Be2 {[%clk 0:02:51.2]} 9... O-O
{[%clk 0:02:30.2]} 10. O-O {[%clk 0:02:51.1]} 10... d6 {[%clk 0:02:29.7]} 11.
Nd4 {[%clk 0:02:51.3]} 11... Bd7 {[%clk 0:02:27.3]} 12. f3 {[%clk 0:02:50]}
12... Rc8 {[%clk 0:02:25.2]} 13. Qd2 {[%clk 0:02:49.6]} 13... a6 {[%clk
0:02:19.4]} 14. b3 {[%clk 0:02:46.4]} 14... Na5 {[%clk 0:02:15.3]} 15. Rac1
{[%clk 0:02:43.2]} 15... Nc6 {[%clk 0:02:09.9]} 16. Rfd1 {[%clk 0:02:40.2]}
16... Qa5 {[%clk 0:01:52.2]} 17. Bf1 {[%clk 0:02:32.5]} 17... Nxd4 {[%clk
0:01:51.8]} 18. Bxd4 {[%clk 0:02:31.6]} 18... Qh5 {[%clk 0:01:50.7]} 19. Nd5
{[%clk 0:02:15]} 19... Nxd5 {[%clk 0:01:43.7]} 20. Bxg7 {[%clk 0:02:14.9]} 20...
Kxg7 {[%clk 0:01:41.9]} 21. exd5 {[%clk 0:02:15.6]} 21... Rc7 {[%clk 0:01:41.2]}
22. Re1 {[%clk 0:02:14.9]} 22... Bc8 {[%clk 0:01:39.8]} 23. Re3 {[%clk 0:02:09]}
23... Re8 {[%clk 0:01:32.5]} 24. Rce1 {[%clk 0:02:08.4]} 24... Qg5 {[%clk
0:01:30.7]} 25. Qa5 {[%clk 0:01:45.1]} 25... Rd7 {[%clk 0:01:27.6]} 26. g3
{[%clk 0:01:45.2]} 26... e5 {[%clk 0:01:17.7]} 27. Qc3 {[%clk 0:01:35.8]} 27...
Rde7 {[%clk 0:01:15.1]} 28. f4 {[%clk 0:01:34]} 28... Qf6 {[%clk 0:01:13.2]} 29.
fxe5 {[%clk 0:01:30.7]} 29... Rxe5 {[%clk 0:01:10.7]} 30. Rxe5 {[%clk
0:01:29.9]} 30... Rxe5 {[%clk 0:01:07.7]} 31. Rxe5 {[%clk 0:01:29.2]} 31... dxe5
{[%clk 0:01:04.5]} 32. c5 {[%clk 0:01:24.6]} 32... e4 {[%clk 0:01:02.5]} 33.
Qxf6+ {[%clk 0:01:11]} 33... Kxf6 {[%clk 0:00:58.6]} 34. Kf2 {[%clk 0:01:11.9]}
34... Ke5 {[%clk 0:00:58.5]} 35. d6 {[%clk 0:01:11.2]} 35... Kd4 {[%clk
0:00:54.2]} 36. b4 {[%clk 0:01:11.2]} 36... Kc3 {[%clk 0:00:50.7]} 37. b5 {[%clk
0:01:09.2]} 37... axb5 {[%clk 0:00:37.8]} 38. Bxb5 {[%clk 0:01:08]} 38... Kd2
{[%clk 0:00:38.1]} 39. Bc4 {[%clk 0:00:42.8]} 39... e3+ {[%clk 0:00:33.7]} 40.
Kf3 {[%clk 0:00:42.6]} 40... Bd7 {[%clk 0:00:30.7]} 41. Kf4 {[%clk 0:00:25.8]}
41... f6 {[%clk 0:00:27.8]} 42. h4 {[%clk 0:00:16.9]} 42... e2 {[%clk
0:00:24.5]} 43. Bxe2 {[%clk 0:00:17]} 43... Kxe2 {[%clk 0:00:25]} 44. g4 {[%clk
0:00:17.9]} 44... h6 {[%clk 0:00:20.4]} 45. g5 {[%clk 0:00:17.7]} 45... hxg5+
{[%clk 0:00:19.9]} 46. hxg5 {[%clk 0:00:18.2]} 46... f5 {[%clk 0:00:20.6]} 47.
Ke5 {[%clk 0:00:18.4]} 47... Kd3 {[%clk 0:00:20.8]} 48. Kf6 {[%clk 0:00:17.1]}
48... f4 {[%clk 0:00:20.6]} 49. Kxg6 {[%clk 0:00:17.6]} 49... f3 {[%clk
0:00:20.6]} 50. Kf7 {[%clk 0:00:18.5]} 50... f2 {[%clk 0:00:20.8]} 51. Ke7
{[%clk 0:00:19.4]} 51... Bc6 {[%clk 0:00:20.6]} 52. g6 {[%clk 0:00:19]} 52...
f1=Q {[%clk 0:00:20.4]} 53. g7 {[%clk 0:00:19.9]} 53... Qg2 {[%clk 0:00:20.9]}
54. Kf8 {[%clk 0:00:19.8]} 54... Bd5 {[%clk 0:00:20.3]} 55. d7 {[%clk 0:00:20]}
55... Qf3+ {[%clk 0:00:20.8]} 56. Ke7 {[%clk 0:00:20.5]} 56... Qf7+ {[%clk
0:00:20.6]} 57. Kd6 {[%clk 0:00:21.4]} 57... Qe6+ {[%clk 0:00:20.4]} 58. Kc7
{[%clk 0:00:21.6]} 58... Qc6+ {[%clk 0:00:20.8]} 59. Kd8 {[%clk 0:00:21.1]}
59... Be6 {[%clk 0:00:20.7]} 60. Ke7 {[%clk 0:00:21.6]} 60... Qxd7+ {[%clk
0:00:21.3]} 61. Kf6 {[%clk 0:00:22.5]} 61... Qf7+ {[%clk 0:00:21.8]} 62. Ke5
{[%clk 0:00:23.4]} 62... Qxg7+ {[%clk 0:00:22.2]} 63. Kxe6 {[%clk 0:00:24.3]}
63... Qd4 {[%clk 0:00:21.7]} 0-1

[Event "Late-Titled-Tuesday-Blitz-March-12-2024"]
[Site "Chess.com"]
[Date "2024.03.12"]
[Round "2"]
[White "viktorgen2021"]
[Black "jocmil"]
[Result "0-1"]
[WhiteElo "2484"]
[BlackElo "2790"]
[TimeControl "180+1"]
[EndTime "14:17:42 PDT"]
[Termination "jocmil won on time"]

1. d4 {[%clk 0:03:00.9]} 1... Nf6 {[%clk 0:02:58.9]} 2. Nf3 {[%clk 0:02:59.6]}
2... g6 {[%clk 0:02:59.4]} 3. g3 {[%clk 0:02:58.8]} 3... Bg7 {[%clk 0:03:00]} 4.
Bg2 {[%clk 0:02:59.5]} 4... O-O {[%clk 0:03:00.7]} 5. O-O {[%clk 0:03:00.2]}
5... d6 {[%clk 0:03:01.2]} 6. a4 {[%clk 0:03:00.7]} 6... a5 {[%clk 0:03:00.7]}
7. Nc3 {[%clk 0:02:52.6]} 7... Nc6 {[%clk 0:03:00.6]} 8. h3 {[%clk 0:02:52.2]}
8... e5 {[%clk 0:02:58.6]} 9. dxe5 {[%clk 0:02:50.6]} 9... dxe5 {[%clk
0:02:56.8]} 10. Qxd8 {[%clk 0:02:50.7]} 10... Rxd8 {[%clk 0:02:57.7]} 11. Bg5
{[%clk 0:02:43.5]} 11... Be6 {[%clk 0:02:54]} 12. Rfd1 {[%clk 0:02:41.5]} 12...
h6 {[%clk 0:02:52.9]} 13. Bxf6 {[%clk 0:02:40.5]} 13... Bxf6 {[%clk 0:02:53.8]}
14. Ne4 {[%clk 0:02:38.5]} 14... Be7 {[%clk 0:02:52.9]} 15. e3 {[%clk 0:02:35]}
15... f5 {[%clk 0:02:46.5]} 16. Nc3 {[%clk 0:02:30.4]} 16... e4 {[%clk
0:02:41.5]} 17. Nd4 {[%clk 0:02:27.8]} 17... Nxd4 {[%clk 0:02:41.6]} 18. exd4
{[%clk 0:02:28.7]} 18... Bf6 {[%clk 0:02:27.2]} 19. Nb5 {[%clk 0:02:24]} 19...
Rac8 {[%clk 0:02:06.3]} 20. c3 {[%clk 0:02:11.1]} 20... Bb3 {[%clk 0:02:02.5]}
21. Rd2 {[%clk 0:02:08.1]} 21... c6 {[%clk 0:01:57.9]} 22. Na3 {[%clk
0:02:05.7]} 22... Bg5 {[%clk 0:01:52.4]} 23. Re2 {[%clk 0:02:00.7]} 23... Bxa4
{[%clk 0:01:51.3]} 24. f3 {[%clk 0:01:57.1]} 24... exf3 {[%clk 0:01:43.6]} 25.
Bxf3 {[%clk 0:01:58]} 25... Bb3 {[%clk 0:01:14.2]} 26. Rae1 {[%clk 0:01:50.8]}
26... Kf7 {[%clk 0:01:09.3]} 27. Re5 {[%clk 0:01:38.5]} 27... Re8 {[%clk
0:00:49.9]} 28. g4 {[%clk 0:01:14.3]} 28... Bf6 {[%clk 0:00:35.7]} 29. Rxe8
{[%clk 0:01:12.6]} 29... Rxe8 {[%clk 0:00:35.3]} 30. Rxe8 {[%clk 0:01:09.5]}
30... Kxe8 {[%clk 0:00:36.2]} 31. Kf2 {[%clk 0:01:09.8]} 31... f4 {[%clk
0:00:32]} 32. Be4 {[%clk 0:01:03.7]} 32... g5 {[%clk 0:00:31.7]} 33. Kf3 {[%clk
0:01:00.8]} 33... Bd1+ {[%clk 0:00:23.4]} 34. Kf2 {[%clk 0:01:00]} 34... Bb3
{[%clk 0:00:18.3]} 35. Bd3 {[%clk 0:00:49.5]} 35... Bd5 {[%clk 0:00:16.8]} 36.
Nb1 {[%clk 0:00:48.7]} 36... b5 {[%clk 0:00:15.4]} 37. Nd2 {[%clk 0:00:49.2]}
37... Be7 {[%clk 0:00:15.1]} 38. Nf3 {[%clk 0:00:49.5]} 38... a4 {[%clk
0:00:13.6]} 39. Ne5 {[%clk 0:00:49.6]} 39... Bf6 {[%clk 0:00:10.8]} 40. Ng6
{[%clk 0:00:47.6]} 40... Bf7 {[%clk 0:00:09.8]} 41. h4 {[%clk 0:00:45.8]} 41...
Kd7 {[%clk 0:00:09.5]} 42. h5 {[%clk 0:00:43]} 42... Ke8 {[%clk 0:00:09.7]} 43.
Kf3 {[%clk 0:00:41.5]} 43... Bd5+ {[%clk 0:00:09.5]} 44. Kf2 {[%clk 0:00:41.4]}
44... b4 {[%clk 0:00:07.7]} 45. Bc2 {[%clk 0:00:38.1]} 45... a3 {[%clk
0:00:07.1]} 46. bxa3 {[%clk 0:00:36]} 46... bxa3 {[%clk 0:00:07.9]} 0-1